fUSD/lending_fUSD_20240616
["ID","MTS","AMOUNT","RATE_DAILY","PERIOD"]
[329652664,1718543467819,-1647.47,0.00023459,3]
[329652665,1718543467838,-500.0,0.00023459,3]
[329652666,1718543467865,-500.0,0.00023459,3]
[329652667,1718543467880,-1007.94,0.00023459,3]
[329652668,1718543467894,-671.38,0.00023459,3]
[329652669,1718543467952,-765.87,0.00023459,3]
[329652670,1718543467968,-1108.45,0.00023459,3]
[329652671,1718543467986,-500.0,0.00023459,3]
[329652672,1718543468002,-500.0,0.00023459,3]
[329652673,1718543468017,-1206.94,0.00023459,3]
[329652674,1718543468030,-576.89,0.00023459,3]
[329652675,1718543468064,-1759.47,0.00023459,3]
[329652676,1718543468075,-655.28,0.00023459,3]
[329652677,1718543468104,-155.0,0.000235,2]
[329652678,1718543468124,-150.0,0.000235,3]
[329652679,1718543468146,-500.0,0.00023558,3]
[329652680,1718543468160,-500.0,0.00023558,3]
[329652681,1718543468171,-500.0,0.00023558,3]
[329652682,1718543468186,-500.0,0.00023558,3]
[329652683,1718543468200,-500.0,0.00023558,3]
[329652684,1718543468234,-500.0,0.00023558,3]
[329652685,1718543468250,-500.0,0.00023558,3]
[329652686,1718543468264,-500.0,0.00023558,3]
[329652687,1718543468330,-500.0,0.00023558,3]
[329652688,1718543468348,-626.61261998,0.00023558,3]
[329652689,1718543468400,-500.0,0.00023558,3]
[329652690,1718543468412,-500.0,0.00023558,3]
[329652691,1718543468437,-500.0,0.00023558,3]
[329652692,1718543468453,-500.0,0.00023558,3]
[329652693,1718543468464,-150.14,0.00023558,3]
[329652694,1718543468494,-500.0,0.00023558,3]
[329652695,1718543468508,-500.0,0.00023558,3]
[329652696,1718543468520,-500.0,0.00023558,3]
[329652697,1718543468533,-500.0,0.00023558,3]
[329652698,1718543468546,-500.0,0.00023558,3]
[329652699,1718543468561,-500.0,0.00023558,3]
[329652700,1718543468572,-500.0,0.00023558,3]
[329652701,1718543468585,-500.0,0.00023558,3]
[329652702,1718543468600,-3908.29,0.00023558,3]
[329652703,1718543468621,-500.0,0.00023558,3]
[329652704,1718543468641,-8007.85,0.00023558,3]
[329652705,1718543468663,-500.0,0.00023558,3]
[329652706,1718543468676,-500.0,0.00023558,3]
[329652707,1718543468721,-500.0,0.00023558,3]
[329652708,1718543468753,-500.0,0.00023558,3]
[329652709,1718543468784,-538.75,0.00023558,3]
[329652710,1718543468798,-1722.87,0.00023558,3]
[329652711,1718543468817,-1489.44,0.00023558,3]
[329652712,1718543468829,-649.48,0.00023558,3]
[329652713,1718543468846,-3520.91,0.00023558,3]
[329652714,1718543468864,-2428.49,0.00023558,3]
[329652715,1718543468877,-277.81560421,0.00023558,3]
[329652716,1718543468904,-568.3,0.00023558,3]
[329652717,1718543468916,-500.0,0.00023558,3]
[329652718,1718543468946,-1046.44,0.00023558,3]
[329652719,1718543468957,-500.0,0.00023558,3]
[329652720,1718543468977,-629.85,0.00023558,3]
[329652721,1718543468992,-646.2353513,0.00023559,2]
[329652722,1718543469003,-787.77448927,0.00023559,2]
[329652723,1718543469035,-1143.75,0.00023559,3]
[329652724,1718543469047,-2358.06,0.00023559,3]
[329652725,1718543469061,-500.0,0.00023559,3]
[329652726,1718543469078,-500.0,0.00023561,3]
[329652727,1718543469101,-443.07521023,0.00023561,3]
[329652728,1718543469116,-500.0,0.00023561,3]
[329652729,1718543469135,-286.54917897,0.00023561,3]
[329652730,1718543469147,-3953.08,0.00023561,3]
[329652731,1718543469173,-1627.71,0.00023561,3]
[329652732,1718543469193,-1076.22,0.00023561,3]
[329652733,1718543469212,-2749.41,0.00023561,3]
[329652734,1718543469225,-791.62,0.00023561,3]
[329652735,1718543469239,-500.0,0.00023561,3]
[329652736,1718543469254,-2698.23,0.00023561,3]
[329652737,1718543469285,-900.4,0.00023561,3]
[329652738,1718543469318,-500.0,0.00023561,3]
[329652739,1718543469331,-1139.85,0.00023561,3]
[329652740,1718543469352,-500.0,0.00023561,3]
[329652741,1718543469394,-1672.32,0.00023561,3]
[329652742,1718543469406,-569.27,0.00023561,3]
[329652743,1718543469424,-835.69,0.00023561,3]
[329652744,1718543469452,-1200.74,0.00023561,3]
[329652745,1718543469463,-500.0,0.00023561,3]
[329652746,1718543469476,-666.2,0.00023561,3]
[329652747,1718543469500,-677.79,0.00023561,3]
[329652748,1718543469569,-737.27,0.00023561,3]
[329652749,1718543469601,-1661.59,0.00023561,3]
[329652750,1718543469647,-500.0,0.00023561,3]
[329652751,1718543469677,-1597.3,0.00023561,3]
[329652752,1718543469740,-1539.48,0.00023561,3]
[329652753,1718543469769,-1018.91,0.00023561,3]
[329652754,1718543469831,-1576.0,0.00023561,3]
[329652755,1718543469858,-500.0,0.00023561,3]
[329652756,1718543469884,-500.0,0.00023561,3]
[329652757,1718543469909,-1000.71,0.00023561,3]
[329652758,1718543469946,-965.1,0.00023561,3]
[329652759,1718543469962,-500.0,0.00023561,3]
[329652760,1718543469993,-1912.84,0.00023561,3]
[329652761,1718543470007,-811.0,0.00023561,3]
[329652762,1718543470023,-1707.1,0.00023561,3]
[329652763,1718543470058,-500.0,0.00023561,3]
[329652764,1718543470074,-607.65,0.00023561,3]
[329652765,1718543470093,-500.0,0.00023561,3]
[329652766,1718543470131,-500.0,0.00023561,3]
[329652767,1718543470181,-776.41,0.00023561,3]
[329652768,1718543470197,-757.14,0.00023561,3]
[329652769,1718543470213,-6644.03,0.00023561,3]
[329652770,1718543470239,-530.75,0.00023561,3]
[329652771,1718543470251,-500.0,0.00023561,3]
[329652772,1718543470271,-500.0,0.00023561,3]
[329652773,1718543470293,-500.0,0.00023561,3]
[329652774,1718543470308,-500.0,0.00023561,3]
[329652775,1718543470328,-500.0,0.00023561,3]
[329652776,1718543470357,-500.0,0.00023561,3]
[329652777,1718543470373,-7514.41262718,0.000236,2]
[329652778,1718543470429,-150.5,0.00023703,15]
[329652779,1718543470443,-150.5,0.00023713,15]
[329652780,1718543470456,-150.5,0.00023723,15]
[329652781,1718543470468,-151.0,0.00023731,3]
[329652782,1718543470480,-500.0,0.00023732,3]
[329652783,1718543470504,-594.24,0.00023732,3]
[329652784,1718543470518,-500.0,0.00023732,3]
[329652785,1718543470531,-500.0,0.00023732,3]
[329652786,1718543470548,-3131.91,0.00023732,3]
[329652787,1718543470564,-965.52,0.00023732,3]
[329652788,1718543470578,-586.35,0.00023732,3]
[329652789,1718543470610,-1551.76,0.00023732,3]
[329652790,1718543470625,-500.0,0.00023732,3]
[329652791,1718543470647,-573.44,0.00023732,3]
[329652792,1718543470669,-500.0,0.00023732,3]
[329652793,1718543470681,-500.0,0.00023732,3]
[329652794,1718543470701,-1506.09,0.00023732,3]
[329652795,1718543470725,-864.61,0.00023732,3]
[329652796,1718543470756,-606.9,0.00023732,3]
[329652797,1718543470772,-500.0,0.00023732,3]
[329652798,1718543470785,-500.0,0.00023732,3]
[329652799,1718543470812,-500.0,0.00023732,3]
[329652800,1718543470846,-516.73,0.00023732,3]
[329652801,1718543470902,-500.0,0.00023732,3]
[329652802,1718543470923,-848.21,0.00023732,3]
[329652803,1718543470955,-544.71,0.00023732,3]
[329652804,1718543470980,-2488.18,0.00023732,3]
[329652805,1718543471028,-500.0,0.00023732,3]
[329652806,1718543471054,-1078.22,0.00023732,3]
[329652807,1718543471066,-500.0,0.00023732,3]
[329652808,1718543471080,-571.93,0.00023733,3]
[329652809,1718543471099,-500.0,0.00023733,3]
[329652810,1718543471112,-500.0,0.00023733,3]
[329652811,1718543471141,-500.0,0.00023733,3]
[329652812,1718543471158,-500.0,0.00023733,3]
[329652813,1718543471177,-500.0,0.00023733,3]
[329652814,1718543471208,-636.74,0.00023733,3]
[329652815,1718543471220,-500.0,0.00023733,3]
[329652816,1718543471233,-500.0,0.00023733,3]
[329652817,1718543471288,-500.0,0.00023733,3]
[329652818,1718543471331,-500.0,0.00023733,3]
[329652819,1718543471349,-500.0,0.00023733,3]
[329652820,1718543471365,-500.0,0.00023733,3]
[329652821,1718543471409,-381.7,0.00023733,3]
[329652822,1718543471456,-561.64,0.00023733,3]
[329652823,1718543471477,-801.16,0.00023733,3]
[329652824,1718543471499,-1647.47,0.00023733,3]
[329652825,1718543471520,-500.0,0.00023733,3]
[329652826,1718543471544,-500.0,0.00023733,3]
[329652827,1718543471569,-1007.94,0.00023733,3]
[329652828,1718543471588,-671.38,0.00023733,3]
[329652829,1718543471603,-765.87,0.00023733,3]
[329652830,1718543471638,-1108.45,0.00023733,3]
[329652831,1718543471649,-500.0,0.00023733,3]
[329652832,1718543471660,-500.0,0.00023733,3]
[329652833,1718543471673,-1206.94,0.00023733,3]
[329652834,1718543471702,-576.89,0.00023733,3]
[329652835,1718543471730,-1759.47,0.00023733,3]
[329652836,1718543471744,-152.0,0.00023737,3]
[329652837,1718543471765,-151.27921,0.0002374,2]
[329652838,1718543471786,-269.5,0.00023771,15]
[329652839,1718543471804,-219.48903515,0.0002378,2]
[329652840,1718543471837,-563.41549591,0.0002378,2]
[329652841,1718543471851,-346.79596218,0.0002378,2]
[329652842,1718543471867,-88157.0,0.00023781,2]
[329652843,1718543471878,-140207.0,0.00023781,2]
[329652844,1718543471901,-500.0,0.00023787,2]
[329652845,1718543471918,-6006.7,0.000238,2]
[329652846,1718543471929,-266.69786746,0.00023832,3]
[329652847,1718543471953,-500.0,0.00023832,3]
[329652848,1718543471976,-500.0,0.00023832,3]
[329652849,1718543471992,-500.0,0.00023832,3]
[329652850,1718543472004,-500.0,0.00023832,3]
[329652851,1718543472050,-500.0,0.00023832,3]
[329652852,1718543472100,-185.59135401,0.00023832,3]
[329652853,1718543472129,-500.0,0.00023832,3]
[329652854,1718543472142,-500.0,0.00023832,3]
[329652855,1718543472153,-501.37280303,0.00023832,3]
[329652856,1718543472164,-500.0,0.00023832,3]
[329652857,1718543472176,-500.0,0.00023832,3]
[329652858,1718543472188,-500.0,0.00023832,3]
[329652859,1718543472202,-150.14,0.00023832,3]
[329652860,1718543472245,-500.0,0.00023832,3]
[329652861,1718543472273,-500.0,0.00023832,3]
[329652862,1718543472286,-500.0,0.00023832,3]
[329652863,1718543472306,-390.67490839,0.00023832,3]
[329652864,1718543472318,-500.0,0.00023832,3]
[329652865,1718543472330,-500.0,0.00023832,3]
[329652866,1718543472342,-500.0,0.00023832,3]
[329652867,1718543472354,-500.0,0.00023832,3]
[329652868,1718543472370,-3908.29,0.00023832,3]
[329652869,1718543472381,-500.0,0.00023832,3]
[329652870,1718543472394,-8007.85,0.00023832,3]
[329652871,1718543472409,-500.0,0.00023832,3]
[329652872,1718543472422,-500.0,0.00023832,3]
[329652873,1718543472437,-500.0,0.00023832,3]
[329652874,1718543472458,-500.0,0.00023832,3]
[329652875,1718543472471,-538.75,0.00023832,3]
[329652876,1718543472482,-1722.87,0.00023832,3]
[329652877,1718543472544,-1489.44,0.00023832,3]
[329652878,1718543472557,-649.48,0.00023832,3]
[329652879,1718543472570,-3520.91,0.00023832,3]
[329652880,1718543472581,-2428.49,0.00023832,3]
[329652881,1718543472592,-568.3,0.00023832,3]
[329652882,1718543472610,-500.0,0.00023832,3]
[329652883,1718543472622,-1046.44,0.00023832,3]
[329652884,1718543472635,-500.0,0.00023832,3]
[329652885,1718543472646,-629.85,0.00023832,3]
[329652886,1718543472656,-1143.75,0.00023833,3]
[329652887,1718543472667,-2358.06,0.00023833,3]
[329652888,1718543472687,-500.0,0.00023833,3]
[329652889,1718543472700,-500.0,0.00023833,2]
[329652890,1718543472715,-500.0,0.00023835,3]
[329652891,1718543472730,-500.0,0.00023835,3]
[329652892,1718543472751,-3953.08,0.00023835,3]
[329652893,1718543472765,-1627.71,0.00023835,3]
[329652894,1718543472777,-1076.22,0.00023835,3]
[329652895,1718543472791,-2749.41,0.00023835,3]
[329652896,1718543472806,-791.62,0.00023835,3]
[329652897,1718543472822,-500.0,0.00023835,3]
[329652898,1718543472836,-2698.23,0.00023835,3]
[329652899,1718543472872,-900.4,0.00023835,3]
[329652900,1718543472899,-500.0,0.00023835,3]
[329652901,1718543472913,-1139.85,0.00023835,3]
[329652902,1718543472944,-500.0,0.00023835,3]
[329652903,1718543472955,-1672.32,0.00023835,3]
[329652904,1718543472969,-569.27,0.00023835,3]
[329652905,1718543472982,-835.69,0.00023835,3]
[329652906,1718543473001,-1200.74,0.00023835,3]
[329652907,1718543473018,-500.0,0.00023835,3]
[329652908,1718543473029,-666.2,0.00023835,3]
[329652909,1718543473042,-677.79,0.00023835,3]
[329652910,1718543473054,-737.27,0.00023835,3]
[329652911,1718543473066,-1661.59,0.00023835,3]
[329652912,1718543473093,-500.0,0.00023835,3]
[329652913,1718543473108,-1597.3,0.00023835,3]
[329652914,1718543473120,-1539.48,0.00023835,3]
[329652915,1718543473133,-1018.91,0.00023835,3]
[329652916,1718543473145,-1576.0,0.00023835,3]
[329652917,1718543473155,-500.0,0.00023835,3]
[329652918,1718543473167,-500.0,0.00023835,3]
[329652919,1718543473178,-1000.71,0.00023835,3]
[329652920,1718543473190,-965.1,0.00023835,3]
[329652921,1718543473202,-500.0,0.00023835,3]
[329652922,1718543473236,-1912.84,0.00023835,3]
[329652923,1718543473253,-811.0,0.00023835,3]
[329652924,1718543473265,-1707.1,0.00023835,3]
[329652925,1718543473286,-500.0,0.00023835,3]
[329652926,1718543473299,-607.65,0.00023835,3]
[329652927,1718543473313,-500.0,0.00023835,3]
[329652928,1718543473327,-500.0,0.00023835,3]
[329652929,1718543473339,-776.41,0.00023835,3]
[329652930,1718543473365,-757.14,0.00023835,3]
[329652931,1718543473377,-6644.03,0.00023835,3]
[329652932,1718543473390,-530.75,0.00023835,3]
[329652933,1718543473413,-500.0,0.00023835,3]
[329652934,1718543473427,-160.22824227,0.00023835,3]
[329652935,1718543473440,-500.0,0.00023835,3]
[329652936,1718543473454,-500.0,0.00023835,3]
[329652937,1718543473466,-500.0,0.00023835,3]
[329652938,1718543473485,-358.60947937,0.00023835,3]
[329652939,1718543473528,-563.41549591,0.0002384,2]
[329652940,1718543473538,-25000.0,0.0002385,2]
[329652941,1718543473556,-220.0,0.0002386,15]
[329652942,1718543473571,-25000.0,0.0002386,2]
[329652943,1718543473581,-500.0,0.0002387,2]
[329652944,1718543473595,-150.5,0.0002387,15]
[329652945,1718543473611,-25000.0,0.0002387,2]
[329652946,1718543473623,-10748.79092293,0.00023879,2]
[329652947,1718543473635,-659905.26870342,0.0002388,13]
[329652948,1718543473649,-500.0,0.0002388,2]
[329652949,1718543473670,-1534214.50607944,0.0002388,2]
[329652950,1718543473691,-151.0,0.0002388,7]
[329652951,1718543473713,-183.44,0.0002388,7]
[329652952,1718543473724,-274.179578,0.0002388,7]
[329652953,1718543473736,-154.877286,0.0002388,7]
[329652954,1718543473747,-5800.0,0.00023883,2]
[329652955,1718543473760,-5800.0,0.00023892,2]
[329652956,1718543473792,-291.0,0.000239,2]
[329652957,1718543473803,-583.0,0.000239,2]
[329652958,1718543473819,-160.0,0.000239,2]
[329652959,1718543473830,-2380.74811563,0.000239,2]
[329652960,1718543473849,-2019.78,0.000239,2]
[329652961,1718543473882,-5800.0,0.000239,2]
[329652962,1718543473908,-150.0,0.000239,4]
[329652963,1718543473921,-563.41549591,0.000239,2]
[329652964,1718543473949,-19468.33641409,0.000239,2]
[329652965,1718543473968,-1302.76806571,0.00023979,2]
[329652966,1718543473983,-290804.8242729,0.0002398,2]
[329652967,1718543474016,-1398.82500075,0.0002398,2]
[329652968,1718543474052,-198422.19952001,0.0002398,2]
[329652969,1718543474069,-50616.81926384,0.0002398,2]
[329652970,1718543474082,-500.0,0.00023989,2]
[329652971,1718543474109,-500.0,0.00023989,2]
[329652972,1718543474158,-500.0,0.00023989,2]
[329652973,1718543474188,-15140.65,0.0002399,2]
[329652974,1718543474225,-393.69836376,0.00023997,2]
[329652975,1718543474269,-236.21901825,0.00023997,2]
[329652976,1718543474298,-157.4793455,0.00023997,2]
[329652977,1718543474309,-97404.53143518,0.00023997,2]
[329652978,1718543474320,-128917.87431128,0.00023997,2]
[329652979,1718543474337,-250519.36604858,0.00023999,2]
[329652980,1718543474349,-3457.34168944,0.00024,5]
[329652981,1718543474363,-23070646.18,0.00024,5]
[329652982,1718543474374,-50181.85356985,0.00024,3]
[329652983,1718543474412,-3812.52601102,0.00024,3]
[329652984,1718543474423,-177.14138112,0.00024,2]
[329652985,1718543474454,-1535.0,0.00024,2]
[329652986,1718543474467,-150.0,0.00024,4]
[329652987,1718543474484,-500.0,0.00024006,3]
[329652988,1718543474506,-594.24,0.00024006,3]
[329652989,1718543474532,-500.0,0.00024006,3]
[329652990,1718543474557,-500.0,0.00024006,3]
[329652991,1718543474605,-3131.91,0.00024006,3]
[329652992,1718543474616,-965.52,0.00024006,3]
[329652993,1718543474629,-586.35,0.00024006,3]
[329652994,1718543474653,-1551.76,0.00024006,3]
[329652995,1718543474665,-500.0,0.00024006,3]
[329652996,1718543474688,-573.44,0.00024006,3]
[329652997,1718543474705,-500.0,0.00024006,3]
[329652998,1718543474733,-500.0,0.00024006,3]
[329652999,1718543474746,-1506.09,0.00024006,3]
[329653000,1718543474757,-864.61,0.00024006,3]
[329653001,1718543474768,-606.9,0.00024006,3]
[329653002,1718543474779,-500.0,0.00024006,3]
[329653003,1718543474790,-500.0,0.00024006,3]
[329653004,1718543474808,-500.0,0.00024006,3]
[329653005,1718543474825,-516.73,0.00024006,3]
[329653006,1718543474836,-415.86193312,0.00024006,3]
[329653007,1718543474859,-848.21,0.00024006,3]
[329653008,1718543474873,-544.71,0.00024006,3]
[329653009,1718543474886,-2488.18,0.00024006,3]
[329653010,1718543474898,-500.0,0.00024006,3]
[329653011,1718543474911,-1078.22,0.00024006,3]
[329653012,1718543474927,-637.87172282,0.00024006,3]
[329653013,1718543474945,-571.93,0.00024007,3]
[329653014,1718543474955,-500.0,0.00024007,3]
[329653015,1718543474966,-500.0,0.00024007,3]
[329653016,1718543474989,-500.0,0.00024007,3]
[329653017,1718543475007,-328.98566744,0.00024007,3]
[329653018,1718543475019,-500.0,0.00024007,3]
[329653019,1718543475033,-636.74,0.00024007,3]
[329653020,1718543475048,-500.0,0.00024007,3]
[329653021,1718543475063,-500.0,0.00024007,3]
[329653022,1718543475074,-500.0,0.00024007,3]
[329653023,1718543475103,-500.0,0.00024007,3]
[329653024,1718543475133,-500.0,0.00024007,3]
[329653025,1718543475185,-500.0,0.00024007,3]
[329653026,1718543475204,-561.64,0.00024007,3]
[329653027,1718543475230,-801.16,0.00024007,3]
[329653028,1718543475267,-1647.47,0.00024007,3]
[329653029,1718543475284,-500.0,0.00024007,3]
[329653030,1718543475316,-500.0,0.00024007,3]
[329653031,1718543475336,-1007.94,0.00024007,3]
[329653032,1718543475363,-671.38,0.00024007,3]
[329653033,1718543475376,-765.87,0.00024007,3]
[329653034,1718543475404,-1108.45,0.00024007,3]
[329653035,1718543475421,-500.0,0.00024007,3]
[329653036,1718543475439,-500.0,0.00024007,3]
[329653037,1718543475461,-1206.94,0.00024007,3]
[329653038,1718543475500,-576.89,0.00024007,3]
[329653039,1718543475514,-1759.47,0.00024007,3]
[329653040,1718543475555,-600.0,0.00024096,4]
[329653041,1718543475588,-600.0,0.00024096,4]
[329653042,1718543475606,-600.0,0.00024096,4]
[329653043,1718543475620,-600.0,0.00024096,4]
[329653044,1718543475641,-2059.47906552,0.000241,2]
[329653045,1718543475655,-500.0,0.00024106,3]
[329653046,1718543475668,-500.0,0.00024106,3]
[329653047,1718543475681,-500.0,0.00024106,3]
[329653048,1718543475694,-500.0,0.00024106,3]
[329653049,1718543475713,-500.0,0.00024106,3]
[329653050,1718543475727,-500.0,0.00024106,3]
[329653051,1718543475756,-500.0,0.00024106,3]
[329653052,1718543475771,-485.57666046,0.00024106,3]
[329653053,1718543475787,-500.0,0.00024106,3]
[329653054,1718543475801,-150.14,0.00024106,3]
[329653055,1718543475814,-550.8026075,0.00024106,3]
[329653056,1718543475851,-500.0,0.00024106,3]
[329653057,1718543475863,-500.0,0.00024106,3]
[329653058,1718543475879,-500.0,0.00024106,3]
[329653059,1718543475892,-500.0,0.00024106,3]
[329653060,1718543475910,-500.0,0.00024106,3]
[329653061,1718543475924,-500.0,0.00024106,3]
[329653062,1718543475939,-3908.29,0.00024106,3]
[329653063,1718543475951,-500.0,0.00024106,3]
[329653064,1718543475969,-8007.85,0.00024106,3]
[329653065,1718543475992,-200.35380505,0.00024106,3]
[329653066,1718543476005,-500.0,0.00024106,3]
[329653067,1718543476043,-500.0,0.00024106,3]
[329653068,1718543476068,-500.0,0.00024106,3]
[329653069,1718543476090,-538.75,0.00024106,3]
[329653070,1718543476104,-1722.87,0.00024106,3]
[329653071,1718543476118,-1489.44,0.00024106,3]
[329653072,1718543476130,-649.48,0.00024106,3]
[329653073,1718543476143,-3520.91,0.00024106,3]
[329653074,1718543476155,-2428.49,0.00024106,3]
[329653075,1718543476167,-568.3,0.00024106,3]
[329653076,1718543476178,-500.0,0.00024106,3]
[329653077,1718543476191,-1046.44,0.00024106,3]
[329653078,1718543476203,-561.72343976,0.00024106,3]
[329653079,1718543476213,-629.85,0.00024106,3]
[329653080,1718543476224,-1143.75,0.00024107,3]
[329653081,1718543476241,-2358.06,0.00024107,3]
[329653082,1718543476265,-500.0,0.00024107,3]
[329653083,1718543476284,-500.0,0.00024109,3]
[329653084,1718543476297,-500.0,0.00024109,3]
[329653085,1718543476323,-3953.08,0.00024109,3]
[329653086,1718543476334,-1627.71,0.00024109,3]
[329653087,1718543476345,-500.0,0.00024109,2]
[329653088,1718543476359,-1076.22,0.00024109,3]
[329653089,1718543476378,-500.0,0.00024109,2]
[329653090,1718543476390,-2749.41,0.00024109,3]
[329653091,1718543476415,-791.62,0.00024109,3]
[329653092,1718543476436,-500.0,0.00024109,3]
[329653093,1718543476452,-2698.23,0.00024109,3]
[329653094,1718543476479,-900.4,0.00024109,3]
[329653095,1718543476492,-500.0,0.00024109,3]
[329653096,1718543476504,-1139.85,0.00024109,3]
[329653097,1718543476515,-500.0,0.00024109,3]
[329653098,1718543476527,-1672.32,0.00024109,3]
[329653099,1718543476545,-569.27,0.00024109,3]
[329653100,1718543476555,-835.69,0.00024109,3]
[329653101,1718543476597,-1200.74,0.00024109,3]
[329653102,1718543476620,-666.2,0.00024109,3]
[329653103,1718543476632,-677.79,0.00024109,3]
[329653104,1718543476648,-737.27,0.00024109,3]
[329653105,1718543476675,-1661.59,0.00024109,3]
[329653106,1718543476688,-500.0,0.00024109,3]
[329653107,1718543476699,-1597.3,0.00024109,3]
[329653108,1718543476710,-1539.48,0.00024109,3]
[329653109,1718543476733,-1018.91,0.00024109,3]
[329653110,1718543476758,-1576.0,0.00024109,3]
[329653111,1718543476776,-500.0,0.00024109,3]
[329653112,1718543476789,-500.0,0.00024109,3]
[329653113,1718543476803,-1000.71,0.00024109,3]
[329653114,1718543476829,-965.1,0.00024109,3]
[329653115,1718543476841,-500.0,0.00024109,3]
[329653116,1718543476857,-1912.84,0.00024109,3]
[329653117,1718543476890,-811.0,0.00024109,3]
[329653118,1718543476909,-1707.1,0.00024109,3]
[329653119,1718543476925,-500.0,0.00024109,3]
[329653120,1718543476937,-607.65,0.00024109,3]
[329653121,1718543476953,-500.0,0.00024109,3]
[329653122,1718543476970,-500.0,0.00024109,3]
[329653123,1718543476988,-776.41,0.00024109,3]
[329653124,1718543477019,-757.14,0.00024109,3]
[329653125,1718543477031,-6644.03,0.00024109,3]
[329653126,1718543477055,-530.75,0.00024109,3]
[329653127,1718543477097,-500.0,0.00024109,3]
[329653128,1718543477113,-500.0,0.00024109,3]
[329653129,1718543477129,-500.0,0.00024109,3]
[329653130,1718543477143,-500.0,0.00024109,3]
[329653131,1718543477156,-180.0,0.0002423,2]
[329653132,1718543477181,-500.0,0.0002428,3]
[329653133,1718543477193,-594.24,0.0002428,3]
[329653134,1718543477214,-500.0,0.0002428,3]
[329653135,1718543477260,-185.53895853,0.0002428,3]
[329653136,1718543477274,-3131.91,0.0002428,3]
[329653137,1718543477300,-965.52,0.0002428,3]
[329653138,1718543477313,-586.35,0.0002428,3]
[329653139,1718543477325,-1551.76,0.0002428,3]
[329653140,1718543477349,-500.0,0.0002428,3]
[329653141,1718543477361,-573.44,0.0002428,3]
[329653142,1718543477376,-500.0,0.0002428,3]
[329653143,1718543477387,-500.0,0.0002428,3]
[329653144,1718543477399,-1506.09,0.0002428,3]
[329653145,1718543477417,-864.61,0.0002428,3]
[329653146,1718543477438,-606.9,0.0002428,3]
[329653147,1718543477449,-500.0,0.0002428,3]
[329653148,1718543477474,-500.0,0.0002428,3]
[329653149,1718543477487,-500.0,0.0002428,3]
[329653150,1718543477510,-516.73,0.0002428,3]
[329653151,1718543477533,-848.21,0.0002428,3]
[329653152,1718543477544,-544.71,0.0002428,3]
[329653153,1718543477566,-500.0,0.0002428,3]
[329653154,1718543477581,-2488.18,0.0002428,3]
[329653155,1718543477603,-1078.22,0.0002428,3]
[329653156,1718543477620,-571.93,0.00024281,3]
[329653157,1718543477637,-500.0,0.00024281,3]
[329653158,1718543477664,-500.0,0.00024281,3]
[329653159,1718543477675,-500.0,0.00024281,3]
[329653160,1718543477690,-500.0,0.00024281,3]
[329653161,1718543477708,-636.74,0.00024281,3]
[329653162,1718543477721,-500.0,0.00024281,3]
[329653163,1718543477737,-500.0,0.00024281,3]